[Event "44th Chess Olympiad Women 2022"]
[Site "Chennai"]
[Date "2022.08.06"]
[Round "8.17"]
[White "Forgas Moreno, Yaniela"]
[Black "Mayrhuber, Nikola"]
[Result "1-0"]
[WhiteElo "2343"]
[BlackElo "2141"]
[Annotator "RC"]
[PlyCount "65"]
[EventDate "2022.??.??"]
[TimeControl "60"]

1. e4 {[%emt 0:00:11]} c5 {[%emt 0:00:12]} 2. Nc3 {[%emt 0:00:11]} d6 {[%emt 0:
00:00]} 3. d4 {[%emt 0:00:12]} cxd4 {[%emt 0:00:55]} 4. Qxd4 {[%emt 0:00:06]}
Nc6 {[%emt 0:01:53]} 5. Qd2 {[%emt 0:00:12]} g6 {[%emt 0:01:03]} 6. b3 {
[%emt 0:00:11]} Bh6 {[%emt 0:01:59]} 7. f4 {[%emt 0:00:14]} Nf6 {[%emt 0:01:34]
} 8. Bb2 {[%emt 0:00:33]} O-O {[%emt 0:04:55]} 9. O-O-O {[%emt 0:00:26]} a6 {
[%emt 0:14:55]} 10. Kb1 {[%emt 0:06:05]} b5 {[%emt 0:05:40]} 11. Bd3 {[%emt 0:
00:00]} e5 {[%emt 0:14:53]} 12. Nge2 {[%emt 0:07:53]} Bb7 {[%emt 0:06:05]} 13.
h4 {[%emt 0:09:00]} Nh5 {[%emt 0:10:39]} 14. g4 {[%emt 0:03:10]} Nxf4 {[%emt 0:
00:00]} 15. g5 {[%emt 0:01:13]} Nxe2 {[%emt 0:09:10]} 16. Bxe2 {[%emt 0:01:41]}
Bg7 {[%emt 0:00:10]} 17. h5 {[%emt 0:03:06]} Nd4 {[%emt 0:00:47]} 18. Bd3 {
[%emt 0:05:34]} Nf3 {[%emt 0:05:34]} 19. Qg2 {[%emt 0:03:25]} Nxg5 {[%emt 0:00:
00]} 20. Rdg1 {[%emt 0:03:42]} Ne6 {[%emt 0:02:41]} 21. hxg6 {[%emt 0:03:53]}
hxg6 {[%emt 0:00:08]} 22. Qh2 {[%emt 0:07:56]} Re8 {[%emt 0:00:06]} 23. Rf1 {
[%emt 0:07:13]} Nf8 {[%emt 0:04:45]} 24. Bc1 {[%emt 0:01:19]} f6 {[%emt 0:00:
00]} 25. Qh4 {[%emt 0:06:59]} Ne6 {[%emt 0:02:24]} 26. Nd5 {[%emt 0:02:23]} Kf7
{[%emt 0:02:48]} 27. Nxf6 {[%emt 0:06:41]} Bxf6 {[%emt 0:00:32]} 28. Qh7+ {
[%emt 0:00:26]} Ng7 {[%emt 0:00:00]} 29. Rhg1 {[%emt 0:01:31]} Ke6 {[%emt 0:00:
00]} 30. Rxg6 {[%emt 0:00:42]} Rf8 {[%emt 0:01:06]} 31. Qxg7 {[%emt 0:01:54]}
Rf7 {[%emt 0:00:11]} 32. Rfxf6+ {[%emt 0:03:40]} Rxf6 {[%emt 0:00:10]} 33. Bg5
{[%emt 0:00:04]} 1-0

[Event "44th Chess Olympiad Women 2022"]
[Site "Chennai"]
[Date "2022.08.06"]
[Round "8.17"]
[White "Hapala, Elisabeth"]
[Black "Hernandez Gil, Ineymig"]
[Result "0-1"]
[WhiteElo "2113"]
[BlackElo "2234"]
[Annotator "RC"]
[PlyCount "90"]
[EventDate "2022.??.??"]
[TimeControl "60"]

1. e4 {[%emt 0:00:01]} c6 {[%emt 0:00:47]} 2. d4 {[%emt 0:00:05]} d5 {[%emt 0:
00:00]} 3. e5 {[%emt 0:00:08]} c5 {[%emt 0:00:08]} 4. dxc5 {[%emt 0:00:12]} e6
{[%emt 0:00:06]} 5. a3 {[%emt 0:01:20]} Bxc5 {[%emt 0:00:15]} 6. b4 {[%emt 0:
00:00]} Be7 {[%emt 0:00:15]} 7. Bd3 {[%emt 0:07:49]} a5 {[%emt 0:01:02]} 8. b5
{[%emt 0:01:50]} Nd7 {[%emt 0:00:22]} 9. Nf3 {[%emt 0:02:24]} f6 {[%emt 0:00:
00]} 10. Bb2 {[%emt 0:15:07]} Nh6 {[%emt 0:00:15]} 11. O-O {[%emt 0:01:23]} Nf7
{[%emt 0:00:42]} 12. exf6 {[%emt 0:00:56]} Bxf6 {[%emt 0:00:17]} 13. Bxf6 {
[%emt 0:13:37]} Qxf6 {[%emt 0:00:14]} 14. Ra2 {[%emt 0:00:23]} e5 {[%emt 0:00:
00]} 15. Re1 {[%emt 0:00:39]} O-O {[%emt 0:01:35]} 16. Bf1 {[%emt 0:07:44]} Nb6
{[%emt 0:04:09]} 17. c4 {[%emt 0:04:55]} dxc4 {[%emt 0:12:10]} 18. Nbd2 {
[%emt 0:00:06]} Be6 {[%emt 0:04:13]} 19. Rc2 {[%emt 0:00:12]} Rac8 {[%emt 0:00:
00]} 20. Qc1 {[%emt 0:01:16]} Bd5 {[%emt 0:14:52]} 21. Nxc4 {[%emt 0:11:00]}
Bxf3 {[%emt 0:13:46]} 22. Nxb6 {[%emt 0:00:17]} Rxc2 {[%emt 0:00:27]} 23. Qxc2
{[%emt 0:00:02]} Qxb6 {[%emt 0:00:35]} 24. gxf3 {[%emt 0:00:04]} Ng5 {[%emt 0:
00:00]} 25. Qb3+ {[%emt 0:00:35]} Kh8 {[%emt 0:01:40]} 26. Bg2 {[%emt 0:04:16]}
e4 {[%emt 0:03:19]} 27. Qe3 {[%emt 0:07:00]} Qg6 {[%emt 0:04:45]} 28. Kh1 {
[%emt 0:03:47]} exf3 {[%emt 0:03:28]} 29. Bf1 {[%emt 0:00:01]} h6 {[%emt 0:00:
00]} 30. Qe7 {[%emt 0:01:42]} Qf5 {[%emt 0:04:52]} 31. Qxb7 {[%emt 0:02:16]}
Qc2 {[%emt 0:06:39]} 32. Qe7 {[%emt 0:03:45]} Rb8 {[%emt 0:04:25]} 33. Qe3 {
[%emt 0:05:38]} Qa4 {[%emt 0:02:25]} 34. b6 {[%emt 0:03:58]} Qc6 {[%emt 0:00:
00]} 35. Bd3 {[%emt 0:00:55]} Nh7 {[%emt 0:01:16]} 36. Rb1 {[%emt 0:00:27]} Nf6
{[%emt 0:00:18]} 37. Qd4 {[%emt 0:01:09]} Qc8 {[%emt 0:00:59]} 38. Qd6 {
[%emt 0:00:29]} Ng4 {[%emt 0:00:30]} 39. Kg1 {[%emt 0:00:29]} Qe8 {[%emt 0:00:
00]} 40. Bf5 {[%emt 0:00:38]} Nxf2 {[%emt 0:00:34]} 41. b7 {[%emt 0:17:26]}
Rxb7 {[%emt 0:04:57]} 42. Rc1 {[%emt 0:00:04]} Nh3+ {[%emt 0:05:50]} 43. Kh1 {
[%emt 0:00:49]} f2 {[%emt 0:10:59]} 44. Bd3 {[%emt 0:13:24]} Rb1 {[%emt 0:00:
00]} 45. Rxb1 {[%emt 0:00:41]} Qa8+ {[%emt 0:00:13]} 0-1

[Event "44th Chess Olympiad Women 2022"]
[Site "Chennai"]
[Date "2022.08.06"]
[Round "8.17"]
[White "Miranda Llanes, Yerisbel"]
[Black "Polterauer, Chiara"]
[Result "1-0"]
[WhiteElo "2347"]
[BlackElo "2183"]
[Annotator "RC"]
[PlyCount "113"]
[EventDate "2022.??.??"]
[TimeControl "60"]

1. d4 {[%emt 0:00:14]} Nf6 {[%emt 0:00:09]} 2. c4 {[%emt 0:00:10]} g6 {[%emt 0:
00:00]} 3. Nc3 {[%emt 0:00:07]} d5 {[%emt 0:00:15]} 4. cxd5 {[%emt 0:00:15]}
Nxd5 {[%emt 0:00:08]} 5. e4 {[%emt 0:00:03]} Nxc3 {[%emt 0:00:12]} 6. bxc3 {
[%emt 0:00:03]} Bg7 {[%emt 0:00:14]} 7. Nf3 {[%emt 0:00:03]} c5 {[%emt 0:00:18]
} 8. Bb5+ {[%emt 0:00:02]} Nc6 {[%emt 0:00:27]} 9. Rb1 {[%emt 0:00:20]} O-O {
[%emt 0:00:24]} 10. d5 {[%emt 0:00:58]} Ne5 {[%emt 0:00:22]} 11. O-O {[%emt 0:
00:00]} a6 {[%emt 0:02:51]} 12. Be2 {[%emt 0:01:15]} Nxf3+ {[%emt 0:00:24]} 13.
Bxf3 {[%emt 0:01:15]} b5 {[%emt 0:00:36]} 14. Be3 {[%emt 0:04:27]} Qd6 {
[%emt 0:00:48]} 15. Qc1 {[%emt 0:02:34]} Bd7 {[%emt 0:03:28]} 16. g3 {[%emt 0:
00:00]} f5 {[%emt 0:17:14]} 17. Re1 {[%emt 0:09:20]} fxe4 {[%emt 0:14:09]} 18.
Bxe4 {[%emt 0:00:03]} Bf5 {[%emt 0:00:19]} 19. Bf4 {[%emt 0:06:42]} Be5 {
[%emt 0:07:45]} 20. Bh6 {[%emt 0:04:37]} Bg7 {[%emt 0:06:01]} 21. Bxg7 {
[%emt 0:07:19]} Kxg7 {[%emt 0:00:06]} 22. c4 {[%emt 0:00:44]} Bd7 {[%emt 0:00:
00]} 23. Bg2 {[%emt 0:02:07]} b4 {[%emt 0:01:39]} 24. Qb2+ {[%emt 0:04:19]} Rf6
{[%emt 0:02:26]} 25. Re5 {[%emt 0:01:34]} Re8 {[%emt 0:01:52]} 26. Rbe1 {
[%emt 0:00:30]} Kf7 {[%emt 0:00:37]} 27. h4 {[%emt 0:03:58]} a5 {[%emt 0:12:56]
} 28. Qd2 {[%emt 0:02:01]} Kg7 {[%emt 0:02:29]} 29. Qe3 {[%emt 0:02:13]} Rf7 {
[%emt 0:01:26]} 30. h5 {[%emt 0:00:53]} a4 {[%emt 0:01:30]} 31. h6+ {[%emt 0:
00:00]} Kf8 {[%emt 0:00:12]} 32. f4 {[%emt 0:01:00]} Bf5 {[%emt 0:06:57]} 33.
Bf3 {[%emt 0:02:09]} Rb8 {[%emt 0:01:22]} 34. Bd1 {[%emt 0:02:44]} b3 {[%emt 0:
00:00]} 35. axb3 {[%emt 0:03:17]} a3 {[%emt 0:01:18]} 36. Qc3 {[%emt 0:01:54]}
Qf6 {[%emt 0:03:28]} 37. Bc2 {[%emt 0:06:35]} Bxc2 {[%emt 0:01:38]} 38. Qxc2 {
[%emt 0:00:01]} Qb6 {[%emt 0:00:11]} 39. R5e3 {[%emt 0:03:13]} Rb7 {[%emt 0:00:
00]} 40. Qc3 {[%emt 0:11:19]} Qf6 {[%emt 0:00:41]} 41. Qa5 {[%emt 0:32:50]} Qb6
{[%emt 0:11:17]} 42. Qa8+ {[%emt 0:00:00]} Rb8 {[%emt 0:00:09]} 43. Qxa3 {
[%emt 0:00:00]} Ke8 {[%emt 0:09:37]} 44. Qa4+ {[%emt 0:00:00]} Kf8 {[%emt 0:00:
00]} 45. Qa1 {[%emt 0:00:00]} Ke8 {[%emt 0:01:46]} 46. Qa4+ {[%emt 0:00:00]}
Kf8 {[%emt 0:00:05]} 47. Rd3 {[%emt 0:00:00]} Rf6 {[%emt 0:04:37]} 48. Qd7 {
[%emt 0:00:00]} Qd6 {[%emt 0:01:42]} 49. Qa7 {[%emt 0:00:00]} Rd8 {[%emt 0:00:
00]} 50. Rde3 {[%emt 0:00:00]} Rd7 {[%emt 0:00:31]} 51. Qa8+ {[%emt 0:00:00]}
Rd8 {[%emt 0:00:07]} 52. Qa1 {[%emt 0:00:00]} Kf7 {[%emt 0:02:23]} 53. Re6 {
[%emt 0:00:00]} Qc7 {[%emt 0:00:18]} 54. Rxe7+ {[%emt 0:00:00]} Qxe7 {[%emt 0:
00:00]} 55. Rxe7+ {[%emt 0:00:00]} Kxe7 {[%emt 0:00:05]} 56. Qe5+ {[%emt 0:00:
00]} Kf7 {[%emt 0:01:04]} 57. Qc7+ {[%emt 0:00:00]} 1-0

[Event "44th Chess Olympiad Women 2022"]
[Site "Chennai"]
[Date "2022.08.06"]
[Round "8.17"]
[White "Trippold, Denise"]
[Black "Arribas Robaina, Maritza"]
[Result "1/2-1/2"]
[WhiteElo "2151"]
[BlackElo "2239"]
[Annotator "RC"]
[PlyCount "131"]
[EventDate "2022.??.??"]
[TimeControl "60"]

1. Nf3 {[%emt 0:00:07]} g6 {[%emt 0:00:08]} 2. d4 {[%emt 0:00:16]} Bg7 {
[%emt 0:00:05]} 3. c4 {[%emt 0:00:18]} d6 {[%emt 0:00:05]} 4. e4 {[%emt 0:00:
00]} Bg4 {[%emt 0:00:46]} 5. Be2 {[%emt 0:01:32]} Nc6 {[%emt 0:01:45]} 6. Be3 {
[%emt 0:01:19]} Nf6 {[%emt 0:04:17]} 7. Nc3 {[%emt 0:05:50]} O-O {[%emt 0:00:
00]} 8. O-O {[%emt 0:01:38]} e5 {[%emt 0:00:47]} 9. d5 {[%emt 0:00:23]} Ne7 {
[%emt 0:00:19]} 10. Rc1 {[%emt 0:11:35]} Nd7 {[%emt 0:04:53]} 11. Nd2 {[%emt 0:
00:00]} Bxe2 {[%emt 0:00:16]} 12. Qxe2 {[%emt 0:00:12]} f5 {[%emt 0:01:33]} 13.
exf5 {[%emt 0:04:47]} Nxf5 {[%emt 0:04:59]} 14. Nde4 {[%emt 0:01:04]} h6 {
[%emt 0:09:32]} 15. c5 {[%emt 0:08:41]} a6 {[%emt 0:01:40]} 16. f3 {[%emt 0:00:
00]} Qe7 {[%emt 0:06:39]} 17. b4 {[%emt 0:05:27]} Nf6 {[%emt 0:03:10]} 18. Bf2
{[%emt 0:01:29]} Rad8 {[%emt 0:07:07]} 19. Qc4 {[%emt 0:02:38]} Qf7 {[%emt 0:
00:00]} 20. Rfd1 {[%emt 0:10:28]} Nh7 {[%emt 0:07:11]} 21. b5 {[%emt 0:02:06]}
axb5 {[%emt 0:03:27]} 22. Nxb5 {[%emt 0:06:15]} Nf6 {[%emt 0:03:58]} 23. cxd6 {
[%emt 0:01:26]} cxd6 {[%emt 0:00:14]} 24. Bb6 {[%emt 0:07:38]} Rd7 {[%emt 0:00:
00]} 25. Nxf6+ {[%emt 0:01:27]} Bxf6 {[%emt 0:00:44]} 26. Qb3 {[%emt 0:01:12]}
Bg5 {[%emt 0:01:42]} 27. Rc4 {[%emt 0:01:54]} h5 {[%emt 0:01:04]} 28. Qd3 {
[%emt 0:02:34]} Kh7 {[%emt 0:01:34]} 29. Nc3 {[%emt 0:00:13]} Bd8 {[%emt 0:00:
00]} 30. Bf2 {[%emt 0:02:48]} Be7 {[%emt 0:02:16]} 31. Ne4 {[%emt 0:00:00]} Ra8
{[%emt 0:00:19]} 32. a4 {[%emt 0:00:00]} Kg7 {[%emt 0:01:44]} 33. Rb1 {[%emt 0:
00:00]} Ra5 {[%emt 0:01:42]} 34. Rb5 {[%emt 0:00:00]} Rxb5 {[%emt 0:00:11]} 35.
axb5 {[%emt 0:00:00]} Bd8 {[%emt 0:00:17]} 36. b6 {[%emt 0:00:53]} Ne7 {
[%emt 0:02:50]} 37. Nc3 {[%emt 0:00:12]} Ng8 {[%emt 0:05:10]} 38. Rb4 {[%emt 0:
00:00]} Nf6 {[%emt 0:02:29]} 39. Ra4 {[%emt 0:00:35]} Ng8 {[%emt 0:05:13]} 40.
Rc4 {[%emt 0:00:30]} Ne7 {[%emt 0:00:22]} 41. h3 {[%emt 0:09:01]} Qf5 {[%emt 0:
00:00]} 42. Ne4 {[%emt 0:04:13]} Qf7 {[%emt 0:00:55]} 43. Nc3 {[%emt 0:01:07]}
Qf5 {[%emt 0:00:12]} 44. Re4 {[%emt 0:06:05]} Ng8 {[%emt 0:01:56]} 45. Qe3 {
[%emt 0:05:12]} Qf7 {[%emt 0:03:12]} 46. Ra4 {[%emt 0:00:33]} Ne7 {[%emt 0:00:
00]} 47. Qd3 {[%emt 0:00:33]} Ng8 {[%emt 0:03:23]} 48. Ra5 {[%emt 0:01:42]} Qf4
{[%emt 0:03:47]} 49. Ne4 {[%emt 0:01:16]} Qc1+ {[%emt 0:03:22]} 50. Kh2 {
[%emt 0:00:09]} Qf4+ {[%emt 0:00:31]} 51. g3 {[%emt 0:01:23]} Qf5 {[%emt 0:00:
00]} 52. Kg2 {[%emt 0:03:22]} Qf7 {[%emt 0:02:11]} 53. h4 {[%emt 0:00:11]} Nh6
{[%emt 0:00:33]} 54. Ra8 {[%emt 0:00:47]} Nf5 {[%emt 0:01:33]} 55. Ra5 {
[%emt 0:00:56]} Be7 {[%emt 0:01:27]} 56. Ra4 {[%emt 0:00:57]} Bd8 {[%emt 0:00:
00]} 57. Ra5 {[%emt 0:00:22]} Be7 {[%emt 0:00:07]} 58. Qc3 {[%emt 0:00:10]} Bf6
{[%emt 0:00:32]} 59. Qd3 {[%emt 0:01:34]} Be7 {[%emt 0:00:54]} 60. Ra4 {
[%emt 0:00:33]} Bd8 {[%emt 0:01:03]} 61. Ra8 {[%emt 0:00:11]} Bf6 {[%emt 0:00:
00]} 62. Ra4 {[%emt 0:00:43]} Be7 {[%emt 0:00:54]} 63. Rc4 {[%emt 0:00:15]} Bd8
{[%emt 0:00:04]} 64. Ra4 {[%emt 0:00:41]} Be7 {[%emt 0:00:18]} 65. Rc4 {
[%emt 0:00:17]} Bd8 {[%emt 0:00:04]} 66. Ra4 {[%emt 0:00:05]} 1/2-1/2

[Event "44th Chess Olympiad Women 2022"]
[Site "Chennai"]
[Date "2022.08.06"]
[Round "8.18"]
[White "Fronda, Jan Jodilyn"]
[Black "Urh, Zala"]
[Result "1-0"]
[WhiteElo "2181"]
[BlackElo "2321"]
[Annotator "RC"]
[PlyCount "81"]
[EventDate "2022.??.??"]
[TimeControl "60"]

1. e4 {[%emt 0:01:08]} c6 {[%emt 0:00:06]} 2. d4 {[%emt 0:01:13]} d5 {[%emt 0:
00:00]} 3. e5 {[%emt 0:02:00]} c5 {[%emt 0:02:25]} 4. c3 {[%emt 0:00:38]} Nc6 {
[%emt 0:02:04]} 5. Nf3 {[%emt 0:00:40]} Bg4 {[%emt 0:04:16]} 6. Nbd2 {[%emt 0:
00:00]} e6 {[%emt 0:04:21]} 7. h3 {[%emt 0:05:57]} Bh5 {[%emt 0:16:01]} 8. Be2
{[%emt 0:02:04]} Be7 {[%emt 0:07:20]} 9. O-O {[%emt 0:09:14]} cxd4 {[%emt 0:00:
00]} 10. cxd4 {[%emt 0:00:15]} Nh6 {[%emt 0:00:05]} 11. a3 {[%emt 0:04:53]} Qb6
{[%emt 0:11:12]} 12. Qa4 {[%emt 0:09:14]} Bxf3 {[%emt 0:09:57]} 13. Nxf3 {
[%emt 0:00:21]} Nf5 {[%emt 0:00:06]} 14. Rd1 {[%emt 0:01:03]} h5 {[%emt 0:00:
00]} 15. b4 {[%emt 0:01:48]} Rc8 {[%emt 0:09:53]} 16. b5 {[%emt 0:09:02]} Na5 {
[%emt 0:15:40]} 17. Bd2 {[%emt 0:01:06]} Nc4 {[%emt 0:00:03]} 18. Rac1 {
[%emt 0:01:20]} Nxd4 {[%emt 0:00:18]} 19. Nxd4 {[%emt 0:02:42]} Qxd4 {[%emt 0:
00:00]} 20. b6+ {[%emt 0:00:26]} Kf8 {[%emt 0:00:31]} 21. bxa7 {[%emt 0:02:53]}
Ra8 {[%emt 0:00:39]} 22. Rxc4 {[%emt 0:02:46]} dxc4 {[%emt 0:01:07]} 23. Bb4 {
[%emt 0:00:13]} Qb6 {[%emt 0:01:33]} 24. Rd7 {[%emt 0:05:19]} Bxb4 {[%emt 0:00:
00]} 25. Qxb4+ {[%emt 0:00:16]} Qxb4 {[%emt 0:00:03]} 26. axb4 {[%emt 0:00:07]}
g6 {[%emt 0:01:12]} 27. Rxb7 {[%emt 0:00:15]} c3 {[%emt 0:01:11]} 28. Bd1 {
[%emt 0:01:03]} Kg7 {[%emt 0:00:27]} 29. b5 {[%emt 0:01:49]} Rhd8 {[%emt 0:00:
00]} 30. Bb3 {[%emt 0:00:16]} Rac8 {[%emt 0:00:45]} 31. Bc2 {[%emt 0:01:06]}
Kf8 {[%emt 0:00:30]} 32. b6 {[%emt 0:01:46]} Ke8 {[%emt 0:00:23]} 33. h4 {
[%emt 0:00:39]} Kf8 {[%emt 0:00:25]} 34. Kf1 {[%emt 0:01:44]} Ke8 {[%emt 0:00:
00]} 35. Ke1 {[%emt 0:00:17]} Kf8 {[%emt 0:00:14]} 36. Rc7 {[%emt 0:02:22]}
Rxc7 {[%emt 0:01:10]} 37. bxc7 {[%emt 0:00:04]} Rc8 {[%emt 0:00:20]} 38. Be4 {
[%emt 0:01:44]} c2 {[%emt 0:00:43]} 39. Bxc2 {[%emt 0:00:06]} Ke7 {[%emt 0:00:
00]} 40. Be4 {[%emt 0:00:06]} Kd7 {[%emt 0:00:22]} 41. Bb7 {[%emt 0:30:18]} 1-0

[Event "44th Chess Olympiad Women 2022"]
[Site "Chennai"]
[Date "2022.08.06"]
[Round "8.18"]
[White "Janzelj, Lara"]
[Black "San Diego, Marie Antoinette"]
[Result "1-0"]
[WhiteElo "2215"]
[BlackElo "2101"]
[Annotator "NA RC"]
[PlyCount "91"]
[EventDate "2022.??.??"]
[TimeControl "60"]

1. c4 {[%emt 0:00:04]} e6 {[%emt 0:00:20]} 2. d4 {[%emt 0:00:34]} d5 {[%emt 0:
00:00]} 3. Nf3 {[%emt 0:00:19]} c6 {[%emt 0:00:07]} 4. Nbd2 {[%emt 0:01:51]}
Nf6 {[%emt 0:00:33]} 5. g3 {[%emt 0:00:06]} Nbd7 {[%emt 0:01:41]} 6. Bg2 {
[%emt 0:00:38]} Be7 {[%emt 0:01:51]} 7. Qc2 {[%emt 0:00:23]} O-O {[%emt 0:00:
00]} 8. O-O {[%emt 0:00:54]} b6 {[%emt 0:07:40]} 9. e4 {[%emt 0:08:00]} dxe4 {
[%emt 0:04:54]} 10. Nxe4 {[%emt 0:00:24]} Nxe4 {[%emt 0:02:02]} 11. Qxe4 {
[%emt 0:00:04]} Bb7 {[%emt 0:00:16]} 12. Rd1 {[%emt 0:05:22]} Rc8 {[%emt 0:00:
00]} 13. Be3 {[%emt 0:10:55]} Bf6 {[%emt 0:05:56]} 14. c5 {[%emt 0:09:43]} Be7
{[%emt 0:06:40]} 15. Qc2 {[%emt 0:02:47]} Nf6 {[%emt 0:00:40]} 16. Bg5 {
[%emt 0:04:28]} Nd5 {[%emt 0:01:13]} 17. Bxe7 {[%emt 0:00:06]} Qxe7 {[%emt 0:
00:00]} 18. Re1 {[%emt 0:12:17]} Rfd8 {[%emt 0:07:22]} 19. a3 {[%emt 0:05:01]}
a5 {[%emt 0:04:42]} 20. Ne5 {[%emt 0:02:47]} Ba6 {[%emt 0:11:18]} 21. Bh3 {
[%emt 0:08:06]} Re8 {[%emt 0:03:20]} 22. Rac1 {[%emt 0:02:04]} b5 {[%emt 0:00:
00]} 23. Bg2 {[%emt 0:00:38]} Red8 {[%emt 0:04:36]} 24. Re4 {[%emt 0:03:01]}
Bb7 {[%emt 0:08:44]} 25. Rh4 {[%emt 0:01:17]} g6 {[%emt 0:01:05]} 26. Qd2 {
[%emt 0:00:17]} f6 {[%emt 0:02:27]} 27. Nd3 {[%emt 0:02:30]} a4 {[%emt 0:00:55]
} 28. Re4 {[%emt 0:01:46]} Rc7 {[%emt 0:01:34]} 29. Rce1 {[%emt 0:01:28]} Bc8 {
[%emt 0:00:27]} 30. h4 {[%emt 0:01:56]} Qg7 {[%emt 0:00:49]} 31. Bh3 {[%emt 0:
00:00]} f5 {[%emt 0:02:28]} 32. Re5 {[%emt 0:00:06]} h6 {[%emt 0:00:32]} 33.
Bg2 {[%emt 0:01:27]} g5 {[%emt 0:01:21]} 34. hxg5 {[%emt 0:00:45]} hxg5 {
[%emt 0:00:21]} 35. Bxd5 {[%emt 0:03:49]} cxd5 {[%emt 0:06:16]} 36. Kg2 {
[%emt 0:04:11]} Rf8 {[%emt 0:02:00]} 37. Rh1 {[%emt 0:00:00]} Qg6 {[%emt 0:00:
00]} 38. Ree1 {[%emt 0:01:20]} f4 {[%emt 0:01:09]} 39. g4 {[%emt 0:00:50]} Rh7
{[%emt 0:00:46]} 40. Ne5 {[%emt 0:00:47]} f3+ {[%emt 0:00:28]} 41. Kg3 {
[%emt 0:32:35]} Qg7 {[%emt 0:03:43]} 42. Rxh7 {[%emt 0:00:00]} Kxh7 {[%emt 0:
00:00]} 43. Rh1+ {[%emt 0:00:00]} Kg8 {[%emt 0:00:05]} 44. Rh5 {[%emt 0:00:00]}
Rf4 {[%emt 0:01:46]} 45. Rxg5 {[%emt 0:00:00]} Qxg5 {[%emt 0:00:07]} 46. Qxf4 {
[%emt 0:00:00]} 1-0

[Event "44th Chess Olympiad Women 2022"]
[Site "Chennai"]
[Date "2022.08.06"]
[Round "8.18"]
[White "Mordido, Kylen Joy"]
[Black "Vidic, Teja"]
[Result "1/2-1/2"]
[WhiteElo "2023"]
[BlackElo "2099"]
[Annotator "NA RC"]
[PlyCount "78"]
[EventDate "2022.??.??"]
[TimeControl "60"]

1. c4 {[%emt 0:00:39]} c6 {[%emt 0:00:05]} 2. Nf3 {[%emt 0:01:01]} d5 {[%emt 0:
00:00]} 3. d4 {[%emt 0:01:16]} Nf6 {[%emt 0:00:06]} 4. Nc3 {[%emt 0:01:18]}
dxc4 {[%emt 0:00:55]} 5. a4 {[%emt 0:01:05]} Bf5 {[%emt 0:00:05]} 6. e3 {
[%emt 0:02:20]} e6 {[%emt 0:00:06]} 7. Bxc4 {[%emt 0:01:28]} Bb4 {[%emt 0:00:
00]} 8. O-O {[%emt 0:01:42]} O-O {[%emt 0:00:05]} 9. Qb3 {[%emt 0:03:25]} c5 {
[%emt 0:00:05]} 10. dxc5 {[%emt 0:02:56]} a5 {[%emt 0:00:18]} 11. Nd4 {[%emt 0:
00:00]} Bg6 {[%emt 0:06:38]} 12. Rd1 {[%emt 0:08:10]} Qe7 {[%emt 0:01:14]} 13.
Bd2 {[%emt 0:02:15]} Nc6 {[%emt 0:14:38]} 14. Nce2 {[%emt 0:09:05]} Bxc5 {
[%emt 0:01:54]} 15. Nxc6 {[%emt 0:01:48]} bxc6 {[%emt 0:00:06]} 16. Nf4 {
[%emt 0:00:20]} Be4 {[%emt 0:07:38]} 17. Bd3 {[%emt 0:01:34]} e5 {[%emt 0:00:
00]} 18. Bxe4 {[%emt 0:04:16]} exf4 {[%emt 0:04:10]} 19. Bxc6 {[%emt 0:02:28]}
Rab8 {[%emt 0:00:06]} 20. Bb5 {[%emt 0:02:32]} Ng4 {[%emt 0:02:55]} 21. h3 {
[%emt 0:06:37]} Nxe3 {[%emt 0:12:13]} 22. Bxe3 {[%emt 0:00:40]} fxe3 {[%emt 0:
00:00]} 23. fxe3 {[%emt 0:00:11]} Bxe3+ {[%emt 0:01:51]} 24. Kh1 {[%emt 0:00:
00]} Bc5 {[%emt 0:04:33]} 25. Re1 {[%emt 0:01:19]} Qg5 {[%emt 0:01:57]} 26.
Rad1 {[%emt 0:01:49]} Rbd8 {[%emt 0:00:54]} 27. Rxd8 {[%emt 0:04:01]} Qxd8 {
[%emt 0:02:07]} 28. Rf1 {[%emt 0:01:37]} Qc7 {[%emt 0:08:07]} 29. Bc4 {[%emt 0:
00:00]} Ba7 {[%emt 0:00:31]} 30. Rf3 {[%emt 0:07:15]} Kh8 {[%emt 0:05:10]} 31.
Qa3 {[%emt 0:12:56]} Rc8 {[%emt 0:09:47]} 32. Rxf7 {[%emt 0:05:46]} Qxc4 {
[%emt 0:00:07]} 33. Rxa7 {[%emt 0:00:06]} Qf4 {[%emt 0:00:13]} 34. Qc5 {
[%emt 0:00:51]} Qb8 {[%emt 0:02:29]} 35. Qe3 {[%emt 0:00:41]} Qxb2 {[%emt 0:00:
00]} 36. Rxa5 {[%emt 0:00:31]} h6 {[%emt 0:00:57]} 37. Re5 {[%emt 0:00:32]}
Qa1+ {[%emt 0:00:43]} 38. Kh2 {[%emt 0:00:09]} Qxa4 {[%emt 0:00:07]} 39. Qe4 {
[%emt 0:00:13]} Qxe4 {[%emt 0:00:28]} 1/2-1/2